fUSD/lending_fUSD_20250724
["ID","MTS","AMOUNT","RATE_DAILY","PERIOD"]
[374582069,1753362650318,-209.931242,0.00024983,7]
[374582070,1753362650328,-209.931242,0.00024983,7]
[374582073,1753362650337,-228.510223,0.00024983,7]
[374582074,1753362650347,-228.510223,0.00024983,7]
[374582076,1753362650357,-1451.939792,0.00024983,7]
[374582078,1753362650366,-1451.939792,0.00024983,7]
[374582081,1753362650376,-228.510223,0.00024983,7]
[374582083,1753362650386,-228.510223,0.00024983,7]
[374582084,1753362650396,-4269.3274878,0.00024983,2]
[374582086,1753362650405,-3883.0567008,0.00024983,2]
[374582088,1753362650415,-1451.939792,0.00024983,7]
[374582091,1753362650425,-1451.939792,0.00024983,7]
[374582092,1753362650436,-1941.072092,0.00024983,7]
[374582094,1753362650446,-1941.072092,0.00024983,7]
[374582096,1753362650455,-151.0,0.00024983,7]
[374582098,1753362650465,-1941.072092,0.00024983,7]
[374582101,1753362650475,-1941.072092,0.00024983,7]
[374582103,1753362650485,-350.7238535,0.00024983,2]
[374582105,1753362650495,-323.853981,0.00024983,2]
[374582107,1753362650504,-296.9841085,0.00024983,2]
[374582108,1753362650514,-151.0,0.00024983,7]
[374582110,1753362650524,-151.0,0.00024983,7]
[374582112,1753362650534,-92961.3687792,0.00024983,2]
[374582115,1753362650545,-84550.6152865,0.00024983,2]
[374582116,1753362650555,-151.0,0.00024983,7]
[374582118,1753362650565,-151.0,0.00024983,7]
[374582120,1753362650575,-151.0,0.00024983,7]
[374582123,1753362650585,-151.0,0.00024983,7]
[374582125,1753362650596,-151.0,0.00024983,7]
[374582127,1753362650606,-151.0,0.00024983,7]
[374582129,1753362650615,-262.430929,0.00024983,7]
[374582130,1753362650624,-64590.2727173,0.00024983,2]
[374582132,1753362650634,-58746.416619,0.00024983,2]
[374582134,1753362650643,-151.0,0.00024983,7]
[374582137,1753362650654,-180.732679,0.00024983,7]
[374582138,1753362650665,-180.732679,0.00024983,7]
[374582141,1753362650674,-180.732679,0.00024983,7]
[374582142,1753362650686,-180.732679,0.00024983,7]
[374582144,1753362650695,-6039.978241,0.00024983,2]
[374582146,1753362650705,-300.0,0.00024999,10]
[374582149,1753362650715,-666.0,0.00024999,2]
[374582150,1753362650724,-300.0,0.00024999,10]
[374582152,1753362650734,-306.76977049,0.00024999,10]
[374582154,1753362650744,-300.0,0.00024999,10]
[374582156,1753362650753,-300.0,0.00024999,10]
[374582158,1753362650763,-666.0,0.00024999,2]
[374582160,1753362650772,-1000.0,0.00024999,2]
[374582162,1753362650781,-10000.00000866,0.00025,2]
[374582164,1753362650790,-5050.0,0.00025,2]
[374582166,1753362650800,-1855543.425883,0.00025,5]
[374582168,1753362650809,-152.97575867,0.00025,2]
[374582170,1753362650819,-74512.82,0.00025,7]
[374582172,1753362650829,-151.0,0.00025,7]
[374582174,1753362650838,-151.0,0.00025,7]
[374582176,1753362650848,-151.0,0.00025,7]
[374582178,1753362650857,-151.0,0.00025,7]
[374582180,1753362650867,-151.0,0.00025,7]
[374582182,1753362650876,-158.94837,0.00025,7]
[374582184,1753362650885,-158.94837,0.00025,7]
[374582186,1753362650894,-991.191571,0.00025,7]
[374582188,1753362650904,-151.833764,0.00025,7]
[374582190,1753362650915,-151.0,0.00025,7]
[374582192,1753362650924,-151.0,0.00025,7]
[374582194,1753362650935,-151.0,0.00025,7]
[374582196,1753362650945,-151.0,0.00025,7]
[374582198,1753362650954,-156.3281,0.00025,7]
[374582200,1753362650963,-151.0,0.00025,7]
[374582202,1753362650972,-151.0,0.00025,7]
[374582204,1753362650982,-151.0,0.00025,7]
[374582206,1753362650991,-151.0,0.00025,7]
[374582208,1753362651000,-151.0,0.00025,7]
[374582209,1753362651010,-291.830671,0.00025,7]
[374582211,1753362651019,-151.0,0.00025,7]
[374582213,1753362651030,-151.0,0.00025,7]
[374582215,1753362651039,-214.33486,0.00025,7]
[374582217,1753362651049,-214.33486,0.00025,7]
[374582219,1753362651058,-151.0,0.00025,7]
[374582221,1753362651071,-198.203194,0.00025,7]
[374582223,1753362651080,-2935.14,0.00025,14]
[374582225,1753362651090,-151.0,0.00025,7]
[374582227,1753362651099,-151.0,0.00025,7]
[374582229,1753362651109,-162.727318,0.00025,7]
[374582231,1753362651119,-196.924364,0.00025,7]
[374582233,1753362651128,-162.727318,0.00025,7]
[374582235,1753362651139,-196.924364,0.00025,7]
[374582237,1753362651148,-151.0,0.00025,7]
[374582239,1753362651158,-151.0,0.00025,7]
[374582241,1753362651168,-156.590286,0.00025,7]
[374582243,1753362651177,-180.793153,0.00025,7]
[374582245,1753362651191,-151.0,0.00025,7]
[374582247,1753362651201,-226.819734,0.00025,7]
[374582249,1753362651211,-151.0,0.00025,7]
[374582251,1753362651221,-151.0,0.00025,7]
[374582253,1753362651231,-254.816878,0.00025,7]
[374582256,1753362651241,-151.0,0.00025,7]
[374582258,1753362651251,-254.816878,0.00025,7]
[374582260,1753362651260,-151.0,0.00025,7]
[374582261,1753362651270,-151.0,0.00025,7]
[374582264,1753362651280,-151.0,0.00025,7]
[374582266,1753362651290,-163.04108975,0.00025,5]
[374582268,1753362651299,-151.0,0.00025,7]
[374582270,1753362651309,-502.000112,0.00025,7]
[374582272,1753362651319,-502.000112,0.00025,7]
[374582274,1753362651328,-151.0,0.00025,7]
[374582276,1753362651338,-163.658389,0.00025,7]
[374582278,1753362651347,-163.658389,0.00025,7]
[374582279,1753362651356,-165.663684,0.00025,7]
[374582281,1753362651366,-151.0,0.00025,7]
[374582284,1753362651376,-151.0,0.00025,7]
[374582286,1753362651385,-151.0,0.00025,7]
[374582287,1753362651394,-290.299134,0.00025,7]
[374582289,1753362651404,-151.0,0.00025,7]
[374582291,1753362651413,-747.382626,0.00025,7]
[374582293,1753362651423,-747.382626,0.00025,7]
[374582295,1753362651437,-747.382626,0.00025,7]
[374582297,1753362651446,-747.382626,0.00025,7]
[374582300,1753362651456,-430.424744,0.00025,7]
[374582302,1753362651465,-430.424744,0.00025,7]
[374582303,1753362651475,-319.330614,0.00025,7]
[374582306,1753362651485,-151.0,0.00025,7]
[374582307,1753362651495,-151.0,0.00025,7]
[374582309,1753362651504,-233.300995,0.00025,7]
[374582311,1753362651514,-233.300995,0.00025,7]
[374582312,1753362651523,-154.5202,0.00025,7]
[374582313,1753362651532,-172.785399,0.00025,7]
[374582314,1753362651541,-151.0,0.00025,7]
[374582316,1753362651550,-151.0,0.00025,7]
[374582318,1753362651560,-151.0,0.00025,7]
[374582320,1753362651569,-151.0,0.00025,7]
[374582322,1753362651578,-151.0,0.00025,7]
[374582324,1753362651588,-151.0,0.00025,7]
[374582326,1753362651598,-151.0,0.00025,7]
[374582328,1753362651607,-151.0,0.00025,7]
[374582330,1753362651616,-151.0,0.00025,7]
[374582332,1753362651625,-311.737431,0.00025,7]
[374582334,1753362651635,-311.737431,0.00025,7]
[374582336,1753362651644,-151.0,0.00025,7]
[374582338,1753362651654,-151.0,0.00025,7]
[374582340,1753362651664,-236.26895,0.00025,7]
[374582342,1753362651673,-236.26895,0.00025,7]
[374582344,1753362651685,-359.871616,0.00025,7]
[374582346,1753362651694,-359.871616,0.00025,7]
[374582348,1753362651704,-151.0,0.00025,7]
[374582350,1753362651713,-151.0,0.00025,7]
[374582352,1753362651723,-151.0,0.00025,7]
[374582354,1753362651732,-151.0,0.00025,7]
[374582356,1753362651741,-151.0,0.00025,7]
[374582358,1753362651752,-151.0,0.00025,7]
[374582360,1753362651761,-151.0,0.00025,7]
[374582362,1753362651770,-151.0,0.00025,7]
[374582364,1753362651780,-151.0,0.00025,7]
[374582366,1753362651789,-151.0,0.00025,7]
[374582367,1753362651799,-151.0,0.00025,7]
[374582370,1753362651808,-181.656704,0.00025,7]
[374582372,1753362651817,-181.656704,0.00025,7]
[374582373,1753362651827,-213.711457,0.00025,7]
[374582376,1753362651836,-213.711457,0.00025,7]
[374582377,1753362651846,-151.0,0.00025,7]
[374582379,1753362651855,-3576.23791,0.00025,7]
[374582382,1753362651865,-3576.23791,0.00025,7]
[374582383,1753362651875,-151.0,0.00025,7]
[374582386,1753362651884,-267.080044,0.00025,7]
[374582387,1753362651894,-380.924456,0.00025,7]
[374582390,1753362651904,-267.080044,0.00025,7]
[374582392,1753362651913,-380.924456,0.00025,7]
[374582394,1753362651922,-451.254132,0.00025,7]
[374582396,1753362651932,-451.254132,0.00025,7]
[374582398,1753362651942,-151.0,0.00025,7]
[374582399,1753362651952,-203.846206,0.00025,7]
[374582401,1753362651962,-203.846206,0.00025,7]
[374582404,1753362651973,-151.0,0.00025,7]
[374582406,1753362651983,-193.0,0.00025,7]
[374582408,1753362651993,-151.0,0.00025,7]
[374582410,1753362652002,-151.0,0.00025,7]
[374582412,1753362652011,-151.0,0.00025,7]
[374582413,1753362652021,-151.0,0.00025,7]
[374582416,1753362652031,-233.448916,0.00025,7]
[374582417,1753362652041,-233.448916,0.00025,7]
[374582420,1753362652052,-233.284748,0.00025,7]
[374582422,1753362652066,-233.284748,0.00025,7]
[374582423,1753362652077,-194.43,0.00025,2]
[374582426,1753362652087,-179.32475,0.00025,7]
[374582427,1753362652098,-179.32475,0.00025,7]
[374582429,1753362652109,-209.931242,0.00025,7]
[374582431,1753362652118,-209.931242,0.00025,7]
[374582434,1753362652128,-228.510223,0.00025,7]
[374582436,1753362652139,-1451.939792,0.00025,7]
[374582438,1753362652148,-228.510223,0.00025,7]
[374582440,1753362652158,-1451.939792,0.00025,7]
[374582441,1753362652167,-1941.072092,0.00025,7]
[374582443,1753362652176,-151.0,0.00025,7]
[374582445,1753362652188,-1941.072092,0.00025,7]
[374582447,1753362652198,-151.0,0.00025,7]
[374582449,1753362652208,-151.0,0.00025,7]
[374582451,1753362652217,-151.0,0.00025,7]
[374582453,1753362652227,-151.0,0.00025,7]
[374582455,1753362652237,-151.0,0.00025,7]
[374582457,1753362652247,-180.732679,0.00025,7]
[374582459,1753362652257,-180.732679,0.00025,7]
[374582461,1753362652266,-2000.0,0.00025016,2]
[374582463,1753362652276,-2000.0,0.00025016,2]
[374582465,1753362652285,-1979.0,0.00025033,2]
[374582467,1753362652295,-168.0,0.00025067,2]
[374582469,1753362652305,-200.0,0.000251,7]
[374582472,1753362652315,-1000.0,0.000251,2]
[374582474,1753362652325,-150.0,0.00025102,2]
[374582475,1753362652334,-174.0,0.00025103,2]
[374582477,1753362652344,-216.0,0.0002512,2]
[374582479,1753362652354,-150.0,0.00025126,2]
[374582481,1753362652364,-150.0,0.0002514,2]
[374582484,1753362652374,-500.0,0.0002514,2]
[374582486,1753362652384,-651.0,0.0002514,2]
[374582488,1753362652393,-200.0,0.0002514,2]
[374582489,1753362652403,-167.79232442,0.0002514,2]
[374582492,1753362652412,-500.0,0.0002514,2]
[374582494,1753362652422,-591.0,0.0002514,2]
[374582496,1753362652433,-150.0,0.0002514,2]
[374582497,1753362652442,-207.0,0.0002516,2]
[374582499,1753362652452,-224.0,0.00025201,2]
[374582502,1753362652462,-1500.0,0.0002521,2]
[374582504,1753362652472,-168.0,0.00025223,2]
[374582505,1753362652482,-224.0,0.00025299,2]
[374582507,1753362652492,-464.0483225,0.00025308,2]
[374582509,1753362652502,-1000.0,0.00025321,2]
[374582511,1753362652512,-1000.0,0.00025321,2]
[374582513,1753362652521,-152.0,0.00025374,4]
[374582515,1753362652531,-150.0,0.00025392,2]
[374582517,1753362652541,-168.0,0.00025392,2]
[374582519,1753362652551,-224.0,0.00025397,2]
[374582521,1753362652561,-270.114236,0.00025403,2]
[374582523,1753362652570,-286.15,0.00025413,7]
[374582525,1753362652579,-150.0,0.00025414,2]
[374582527,1753362652590,-500.0,0.00025414,2]
[374582529,1753362652599,-651.0,0.00025414,2]
[374582531,1753362652609,-500.0,0.00025414,2]
[374582533,1753362652619,-591.0,0.00025414,2]
[374582536,1753362652639,-204.15086346,0.00025414,2]
[374582539,1753362652651,-308.96425414,0.00025419,10]
[374582541,1753362652661,-300.0,0.00025419,10]
[374582543,1753362652671,-150.0,0.0002542,2]
[374582545,1753362652683,-2309.05368175,0.0002542,2]
[374582547,1753362652693,-150.0,0.0002542,2]
[374582549,1753362652703,-4860.88929142,0.0002542,2]
[374582551,1753362652712,-150.0,0.0002542,2]
[374582553,1753362652723,-30951.29079259,0.0002542,2]
[374582555,1753362652733,-150.0,0.0002542,2]
[374582557,1753362652744,-439.39675416,0.0002542,2]
[374582559,1753362652754,-179.36762882,0.00025421,2]
[374582560,1753362652763,-174.0,0.00025438,2]
[374582563,1753362652774,-151.0,0.00025461,2]
[374582583,1753362652957,-168.0,0.00025462,2]
[374582585,1753362652967,-168.0,0.00025476,2]
[374582587,1753362652978,-928.28,0.00025492,2]
[374582589,1753362652988,-228.510223,0.00025495,7]
[374582591,1753362652997,-228.510223,0.00025495,7]
[374582593,1753362653007,-1941.072092,0.00025495,7]
[374582595,1753362653022,-1941.072092,0.00025495,7]
[374582597,1753362653033,-151.0,0.00025495,7]
[374582600,1753362653043,-151.0,0.00025495,7]
[374582602,1753362653054,-151.0,0.00025495,7]
[374582604,1753362653069,-180.732679,0.00025495,7]
[374582605,1753362653079,-180.732679,0.00025495,7]
[374582608,1753362653091,-500.0,0.00025496,2]
[374582610,1753362653103,-500.0,0.00025496,2]
[374582611,1753362653114,-500.0,0.00025496,2]
[374582614,1753362653124,-500.0,0.00025496,2]
[374582616,1753362653135,-500.0,0.00025496,2]
[374582618,1753362653147,-500.0,0.00025496,2]
[374582620,1753362653158,-500.0,0.00025496,2]
[374582622,1753362653168,-500.0,0.00025496,2]
[374582624,1753362653179,-500.0,0.00025496,2]
[374582626,1753362653192,-500.0,0.00025496,2]
[374582628,1753362653203,-500.0,0.00025496,2]
[374582630,1753362653214,-500.0,0.00025496,2]
[374582632,1753362653224,-500.0,0.00025496,2]
[374582634,1753362653234,-500.0,0.00025496,2]
[374582636,1753362653245,-500.0,0.00025496,2]
[374582638,1753362653255,-500.0,0.00025496,2]
[374582640,1753362653266,-500.0,0.00025496,2]
[374582642,1753362653276,-500.0,0.00025496,2]
[374582644,1753362653287,-500.0,0.00025496,2]
[374582646,1753362653297,-500.0,0.00025496,2]
[374582648,1753362653307,-500.0,0.00025496,2]
[374582650,1753362653318,-500.0,0.00025496,2]
[374582652,1753362653328,-500.0,0.00025496,2]
[374582654,1753362653339,-500.0,0.00025496,2]
[374582656,1753362653349,-549.0,0.00025496,2]
[374582658,1753362653359,-500.0,0.00025496,2]
[374582660,1753362653369,-500.0,0.00025496,2]
[374582662,1753362653379,-500.0,0.00025496,2]
[374582664,1753362653389,-500.0,0.00025496,2]
[374582666,1753362653399,-500.0,0.00025496,2]
[374582668,1753362653410,-500.0,0.00025496,2]
[374582671,1753362653420,-500.0,0.00025496,2]
[374582673,1753362653429,-500.0,0.00025496,2]
[374582675,1753362653441,-500.0,0.00025496,2]
[374582677,1753362653451,-500.0,0.00025496,2]
[374582679,1753362653461,-500.0,0.00025496,2]
[374582681,1753362653471,-500.0,0.00025496,2]
[374582683,1753362653487,-500.0,0.00025496,2]
[374582686,1753362653499,-500.0,0.00025496,2]
[374582688,1753362653510,-500.0,0.00025496,2]
[374582690,1753362653521,-500.0,0.00025496,2]
[374582692,1753362653531,-500.0,0.00025496,2]
[374582694,1753362653542,-500.0,0.00025496,2]
[374582696,1753362653553,-500.0,0.00025496,2]
[374582698,1753362653563,-500.0,0.00025496,2]
[374582700,1753362653574,-500.0,0.00025496,2]
[374582702,1753362653584,-500.0,0.00025496,2]
[374582704,1753362653596,-500.0,0.00025496,2]
[374582706,1753362653607,-500.0,0.00025496,2]
[374582708,1753362653617,-500.0,0.00025496,2]
[374582710,1753362653627,-500.0,0.00025496,2]
[374582712,1753362653638,-500.0,0.00025496,2]
[374582714,1753362653648,-500.0,0.00025496,2]
[374582716,1753362653659,-500.0,0.00025496,2]
[374582719,1753362653670,-500.0,0.00025496,2]
[374582721,1753362653680,-500.0,0.00025496,2]
[374582723,1753362653691,-500.0,0.00025496,2]
[374582725,1753362653701,-500.0,0.00025496,2]
[374582727,1753362653711,-500.0,0.00025496,2]
[374582729,1753362653721,-500.0,0.00025496,2]
[374582731,1753362653732,-500.0,0.00025496,2]
[374582733,1753362653742,-500.0,0.00025496,2]
[374582735,1753362653752,-500.0,0.00025496,2]
[374582737,1753362653764,-500.0,0.00025496,2]
[374582739,1753362653775,-500.0,0.00025496,2]
[374582741,1753362653786,-500.0,0.00025496,2]
[374582743,1753362653796,-500.0,0.00025496,2]
[374582745,1753362653808,-500.0,0.00025496,2]
[374582748,1753362653818,-500.0,0.00025496,2]
[374582750,1753362653828,-500.0,0.00025496,2]
[374582752,1753362653839,-500.0,0.00025496,2]
[374582754,1753362653849,-500.0,0.00025496,2]
[374582756,1753362653860,-500.0,0.00025496,2]
[374582758,1753362653870,-500.0,0.00025496,2]
[374582760,1753362653881,-500.0,0.00025496,2]
[374582762,1753362653891,-500.0,0.00025496,2]
[374582764,1753362653901,-500.0,0.00025496,2]
[374582766,1753362653915,-233.284748,0.00025496,7]
[374582768,1753362653927,-233.284748,0.00025496,7]
[374582771,1753362653940,-1451.939792,0.00025496,7]
[374582773,1753362653950,-1451.939792,0.00025496,7]
[374582775,1753362653960,-500.0,0.00025512,2]
[374582777,1753362653971,-500.0,0.00025512,2]
[374582779,1753362653981,-500.0,0.00025512,2]
[374582781,1753362653992,-500.0,0.00025512,2]
[374582783,1753362654002,-500.0,0.00025512,2]
[374582785,1753362654012,-500.0,0.00025512,2]
[374582787,1753362654023,-500.0,0.00025512,2]
[374582789,1753362654034,-500.0,0.00025512,2]
[374582791,1753362654045,-500.0,0.00025512,2]
[374582793,1753362654057,-500.0,0.00025512,2]
[374582795,1753362654069,-500.0,0.00025512,2]
[374582797,1753362654081,-500.0,0.00025512,2]
[374582800,1753362654091,-500.0,0.00025512,2]
[374582802,1753362654102,-500.0,0.00025512,2]
[374582804,1753362654113,-500.0,0.00025512,2]
[374582806,1753362654123,-500.0,0.00025512,2]
[374582808,1753362654135,-500.0,0.00025512,2]
[374582810,1753362654145,-500.0,0.00025512,2]
[374582812,1753362654156,-500.0,0.00025512,2]
[374582814,1753362654166,-500.0,0.00025512,2]
[374582816,1753362654176,-500.0,0.00025512,2]
[374582818,1753362654189,-500.0,0.00025512,2]
[374582820,1753362654199,-500.0,0.00025512,2]
[374582822,1753362654209,-500.0,0.00025512,2]
[374582824,1753362654219,-500.0,0.00025512,2]
[374582826,1753362654229,-500.0,0.00025512,2]
[374582828,1753362654239,-500.0,0.00025512,2]
[374582830,1753362654249,-500.0,0.00025512,2]
[374582832,1753362654259,-500.0,0.00025512,2]
[374582834,1753362654270,-500.0,0.00025512,2]
[374582836,1753362654280,-500.0,0.00025512,2]
[374582838,1753362654291,-500.0,0.00025512,2]
[374582840,1753362654301,-500.0,0.00025512,2]
[374582842,1753362654312,-500.0,0.00025512,2]
[374582845,1753362654323,-500.0,0.00025512,2]
[374582847,1753362654336,-500.0,0.00025512,2]
[374582849,1753362654347,-500.0,0.00025512,2]
[374582851,1753362654358,-500.0,0.00025512,2]
[374582853,1753362654369,-500.0,0.00025512,2]
[374582855,1753362654380,-500.0,0.00025512,2]
[374582857,1753362654392,-500.0,0.00025512,2]
[374582860,1753362654415,-500.0,0.00025512,2]
[374582863,1753362654429,-500.0,0.00025512,2]
[374582865,1753362654442,-500.0,0.00025512,2]
[374582867,1753362654453,-500.0,0.00025512,2]
[374582869,1753362654464,-500.0,0.00025512,2]
[374582871,1753362654475,-500.0,0.00025512,2]
[374582873,1753362654485,-500.0,0.00025512,2]
[374582875,1753362654496,-500.0,0.00025512,2]
[374582877,1753362654508,-500.0,0.00025512,2]
[374582879,1753362654518,-500.0,0.00025512,2]
[374582881,1753362654529,-500.0,0.00025512,2]
[374582883,1753362654539,-500.0,0.00025512,2]
[374582886,1753362654550,-500.0,0.00025512,2]
[374582888,1753362654560,-500.0,0.00025512,2]
[374582890,1753362654570,-500.0,0.00025512,2]
[374582892,1753362654581,-500.0,0.00025512,2]
[374582894,1753362654591,-500.0,0.00025512,2]
[374582896,1753362654601,-500.0,0.00025512,2]
[374582898,1753362654612,-500.0,0.00025512,2]
[374582900,1753362654622,-500.0,0.00025512,2]
[374582902,1753362654632,-500.0,0.00025512,2]
[374582904,1753362654642,-500.0,0.00025512,2]
[374582906,1753362654653,-500.0,0.00025512,2]
[374582908,1753362654663,-500.0,0.00025512,2]
[374582910,1753362654673,-500.0,0.00025512,2]
[374582912,1753362654684,-500.0,0.00025512,2]
[374582914,1753362654694,-500.0,0.00025512,2]
[374582916,1753362654704,-500.0,0.00025512,2]
[374582918,1753362654714,-500.0,0.00025512,2]
[374582920,1753362654724,-500.0,0.00025512,2]
[374582922,1753362654734,-500.0,0.00025512,2]
[374582924,1753362654744,-500.0,0.00025512,2]
[374582926,1753362654755,-500.0,0.00025512,2]
[374582928,1753362654765,-500.0,0.00025512,2]
[374582930,1753362654775,-500.0,0.00025512,2]
[374582931,1753362654790,-500.0,0.00025512,2]
[374582932,1753362654801,-500.0,0.00025512,2]
[374582933,1753362654812,-500.0,0.00025512,2]
[374582934,1753362654823,-500.0,0.00025512,2]
[374582935,1753362654834,-500.0,0.00025512,2]
[374582936,1753362654846,-500.0,0.00025512,2]
[374582937,1753362654857,-500.0,0.00025512,2]
[374582938,1753362654867,-500.0,0.00025512,2]
[374582939,1753362654879,-500.0,0.00025512,2]
[374582940,1753362654889,-500.0,0.00025512,2]
[374582942,1753362654900,-500.0,0.00025512,2]
[374582944,1753362654910,-500.0,0.00025512,2]
[374582946,1753362654921,-500.0,0.00025512,2]
[374582949,1753362654933,-500.0,0.00025512,2]
[374582951,1753362654944,-500.0,0.00025512,2]
[374582953,1753362654955,-655.0,0.00025512,2]
[374582955,1753362654966,-1000.0,0.00025521,2]
[374582957,1753362654977,-248.71531821,0.00025522,2]
[374582959,1753362654988,-174.0,0.00025531,2]
[374582961,1753362654999,-174.0,0.0002554,2]
[374582964,1753362655010,-372.0,0.0002555,2]
[374582966,1753362655020,-2500.0,0.00025564,2]
[374582968,1753362655031,-440.48369263,0.00025564,2]
[374582970,1753362655041,-183.54,0.00025582,2]
[374582972,1753362655052,-216.0,0.000256,2]
[374582974,1753362655065,-207.0,0.0002563,2]
[374582976,1753362655076,-168.0,0.00025632,2]
[374582978,1753362655086,-224.5,0.00025663,2]
[374582980,1753362655097,-168.0,0.00025674,2]
[374582983,1753362655109,-500.0,0.00025688,2]
[374582985,1753362655119,-651.0,0.00025688,2]
[374582987,1753362655130,-500.0,0.00025688,2]
[374582989,1753362655141,-591.0,0.00025688,2]
[374582991,1753362655151,-168.0,0.00025696,2]
[374582993,1753362655162,-150.0,0.00025699,2]
[374582995,1753362655174,-121836.1936717,0.000257,2]
[374582997,1753362655185,-10208.35,0.000257,7]
[374582999,1753362655195,-179.32475,0.000257,7]
[374583001,1753362655206,-179.32475,0.000257,7]
[374583003,1753362655217,-191.928144,0.000257,7]
[374583005,1753362655229,-300.0,0.00025708,2]
[374583008,1753362655243,-151.0,0.00025712,7]
[374583010,1753362655254,-151.0,0.00025712,7]
[374583012,1753362655265,-233.448916,0.00025712,7]
[374583014,1753362655276,-233.448916,0.00025712,7]
[374583016,1753362655287,-151.0,0.00025712,7]
[374583078,1753362655886,-151.0,0.00025712,7]
[374583080,1753362655898,-151.0,0.00025732,7]
[374583082,1753362655910,-151.0,0.00025732,7]
[374583084,1753362655921,-151.0,0.00025732,7]
[374583086,1753362655932,-151.0,0.00025732,7]
[374583088,1753362655944,-181.656704,0.00025732,7]
[374583091,1753362655955,-181.656704,0.00025732,7]
[374583093,1753362655967,-151.0,0.00025732,7]
[374583095,1753362655978,-267.080044,0.00025732,7]
[374583097,1753362655988,-267.080044,0.00025732,7]
[374583099,1753362655999,-1665.63613349,0.00025758,2]
[374583101,1753362656010,-249.0,0.00025773,2]
[374583103,1753362656021,-2672.03063499,0.00025775,2]
[374583105,1753362656032,-334.0,0.00025775,7]
[374583107,1753362656043,-152.419578,0.00025786,7]
[374583109,1753362656053,-224.157455,0.00025786,7]
[374583111,1753362656069,-151.0,0.00025786,7]
[374583113,1753362656080,-151.0,0.00025786,7]
[374583115,1753362656090,-151.0,0.00025786,7]
[374583117,1753362656101,-151.0,0.00025786,7]
[374583119,1753362656112,-151.0,0.00025786,7]
[374583122,1753362656123,-151.0,0.00025786,7]
[374583124,1753362656134,-747.382626,0.00025786,7]
[374583126,1753362656144,-747.382626,0.00025786,7]
[374583128,1753362656155,-151.0,0.00025786,7]
[374583130,1753362656165,-155.659673,0.00025786,7]
[374583132,1753362656175,-151.0,0.00025786,7]
[374583134,1753362656186,-3576.23791,0.00025786,7]
[374583136,1753362656198,-3576.23791,0.00025786,7]
[374583138,1753362656208,-380.924456,0.00025786,7]
[374583140,1753362656218,-380.924456,0.00025786,7]
[374583142,1753362656229,-451.254132,0.00025786,7]
[374583144,1753362656240,-451.254132,0.00025786,7]
[374583146,1753362656250,-203.846206,0.00025786,7]
[374583149,1753362656261,-203.846206,0.00025786,7]